bitfinex/quotes_ETHUSD_20260208
["timestamp","ask_amount","ask_price","bid_price","bid_amount"]
[1770584053367,4.50235376,2107.3,2106.8,0.94849327]
[1770584053964,3.316,2107.3,2106.8,0.94849327]
[1770584054168,3.316,2107.3,2106.9,0.94849327]
[1770584055356,0.0472668,2107.0,2106.1,0.001]
[1770584055559,0.0472668,2106.6,2106.1,0.001]
[1770584055758,3.3632668,2106.6,2106.1,0.001]
[1770584056268,1.18680275,2106.5,2106.1,0.001]
[1770584056470,1.18680275,2106.5,2106.0,0.001]
[1770584057153,2.17123209,2106.5,2106.0,0.001]
[1770584057355,0.0472668,2106.4,2106.0,0.001]
[1770584057570,1.03169614,2106.4,2105.8,0.003]
[1770584057948,0.0472668,2106.1,2105.6,0.003]
[1770584058255,1.18708452,2106.0,2105.6,0.003]
[1770584060280,4.74833808,2106.1,2105.6,0.003]
[1770584060461,4.74719309,2106.6,2105.6,1.04796645]
[1770584060661,3.317,2106.8,2105.6,1.04796645]
[1770584060864,1.23395688,2106.7,2105.6,1.04796645]
[1770584061866,1.18669008,2106.7,2105.6,1.04796645]
[1770584062284,1.18669008,2106.7,2105.8,1.04496645]
[1770584063277,0.0472668,2107.1,2105.8,1.04496645]
[1770584063278,4.74604264,2107.1,2105.8,1.04496645]
[1770584063593,1.1864085,2107.2,2105.8,1.04496645]
[1770584064579,1.1864085,2107.2,2106.0,1.04496645]
[1770584065912,0.1044,2107.6,2106.2,1.04496645]
[1770584066124,1.18818455,2107.6,2106.4,1.04496645]
[1770584066785,0.002,2107.6,2106.6,1.04496645]
[1770584068518,0.002,2107.4,2106.6,1.04496645]
[1770584068815,0.002,2107.4,2106.8,1.04496645]
[1770584069314,0.002,2108.0,2106.8,1.04496645]
[1770584072312,0.002,2108.0,2107.1,1.04496645]
[1770584072505,0.002,2108.0,2107.3,1.04496645]
[1770584074285,0.002,2108.0,2107.5,1.04496645]
[1770584075609,0.98642934,2108.0,2107.2,1.18640494]
[1770584075788,0.98642934,2108.0,2106.9,4.36096645]
[1770584075989,0.0472668,2107.8,2107.1,1.18645413]
[1770584076189,1.18607078,2107.8,2107.0,1.18649011]
[1770584076417,0.98442934,2107.7,2106.7,1.18665737]
[1770584076635,0.98442934,2107.7,2106.9,1.18656241]
[1770584076794,0.98442934,2107.7,2106.8,1.18659138]
[1770584077319,0.0472668,2107.6,2106.8,1.18659138]
[1770584077525,1.03169614,2107.6,2106.7,1.18665236]
[1770584077726,0.98442934,2107.6,2106.8,1.18660697]
[1770584078520,1.23350642,2107.5,2106.7,1.18669008]
[1770584078723,2.21793576,2107.5,2106.7,1.18669008]
[1770584078901,2.17066896,2107.5,2106.7,1.18669008]
[1770584079421,0.98442934,2107.4,2106.3,1.18688227]
[1770584080009,1.03169614,2107.2,2106.3,1.18688227]
[1770584080628,1.1864648,2107.1,2106.2,4.74788136]
[1770584081001,1.1864648,2107.1,2106.2,5.79284781]
[1770584081201,2.17087394,2107.2,2106.2,5.79284781]
[1770584082904,2.17087394,2107.2,2106.1,1.1870023]
[1770584082905,0.0472668,2106.9,2106.1,1.1870023]
[1770584083116,1.08682934,2107.1,2106.1,1.18698631]
[1770584083323,0.0472668,2106.9,2106.0,2.23201985]
[1770584083704,1.03169614,2106.9,2106.0,2.23201985]
[1770584084232,1.03169614,2106.9,2106.0,1.1870534]
[1770584084723,1.18663375,2106.8,2105.9,4.74851884]
[1770584085114,1.18663375,2106.8,2105.9,1.18714088]
[1770584085834,1.04473789,2106.3,2105.8,0.001]
[1770584086003,0.0472668,2106.1,2105.8,0.001]
[1770584086205,1.09200469,2106.2,2105.8,0.001]
[1770584086400,1.04473789,2106.2,2105.8,0.001]
[1770584086814,2.27903284,2106.1,2105.8,0.001]
[1770584087231,2.27903284,2106.1,2105.6,0.003]
[1770584087406,1.09200469,2106.1,2105.6,0.003]
[1770584087726,2.27903284,2106.1,2105.6,0.003]
[1770584088330,1.04473789,2106.0,2105.6,0.003]
[1770584089234,1.18691544,2106.3,2105.6,0.003]
[1770584089541,1.28931544,2106.3,2105.6,0.003]
[1770584090429,2.38132013,2106.3,2105.6,0.003]
[1770584091138,1.04473789,2106.2,2105.6,0.003]
[1770584091937,1.18702815,2106.1,2105.6,0.003]
[1770584092552,1.18702815,2106.1,2105.8,0.001]
[1770584092853,1.18701349,2106.2,2105.8,0.001]
[1770584093229,1.23428029,2106.2,2105.8,0.001]
[1770584093428,1.18701349,2106.2,2105.8,0.001]
[1770584094154,1.09200469,2105.9,2105.0,3.316]
[1770584094343,1.04473789,2105.9,2105.0,1.18764069]
[1770584095248,0.0472668,2105.8,2104.9,2.20497291]
[1770584095658,0.0472668,2105.8,2104.9,2.20496209]
[1770584095965,1.09200469,2105.8,2104.8,1.18771272]
[1770584096157,1.04473789,2105.6,2104.7,1.18878078]
[1770584096454,0.0472668,2105.5,2104.7,1.18880688]
[1770584096652,1.04473789,2105.4,2104.2,5.76954117]
[1770584096831,0.0472668,2105.2,2104.3,1.18800764]
[1770584097032,0.0472668,2105.2,2104.3,1.188016]
[1770584097233,0.0472668,2105.2,2103.9,4.753069]
[1770584097234,1.04473789,2105.1,2103.9,2.20556298]
[1770584097554,1.04473789,2104.5,2103.4,1.18850999]
[1770584097743,0.0472668,2104.3,2103.3,1.18856869]
[1770584097929,0.0472668,2104.0,2103.0,1.18874507]
[1770584098125,1.1882694,2103.9,2102.9,1.18883446]
[1770584098330,4.75240782,2104.2,2102.9,1.18883446]
[1770584098558,3.318,2104.7,2102.9,1.18883446]
[1770584098559,5.8428687,2104.9,2103.2,1.01729427]
[1770584098762,0.31996615,2104.7,2103.2,1.01729427]
[1770584099274,0.0472668,2104.6,2103.2,1.01729427]
[1770584099433,10.76836187,2104.5,2103.2,1.01729427]
[1770584099627,0.32021972,2104.4,2103.2,1.01729427]
[1770584100153,1.50824749,2104.4,2103.4,1.01729427]
[1770584100358,0.32022175,2104.3,2103.4,1.01729427]
[1770584101439,0.32022175,2104.3,2103.3,1.18860837]
[1770584101641,0.0472668,2104.2,2103.3,1.18860837]
[1770584101841,0.321515,2104.2,2103.3,1.18860837]
[1770584102042,0.5,2104.1,2103.4,1.01729427]
[1770584102256,0.41568682,2104.1,2103.6,1.01729427]
[1770584102659,0.27970697,2104.2,2103.5,1.18849536]
[1770584102857,1.23480242,2105.2,2103.9,1.01729427]
[1770584103032,0.32067868,2105.0,2103.9,1.01729427]
[1770584103441,0.20365855,2104.9,2103.9,1.01729427]
[1770584103636,0.28245855,2104.9,2103.9,1.01729427]
[1770584104064,0.0788,2104.9,2103.8,1.01729427]
[1770584104235,0.0788,2104.9,2103.9,2.20556367]
[1770584104564,0.0788,2104.9,2104.1,0.001]
[1770584105442,0.1260668,2104.9,2104.1,0.001]
[1770584105760,0.32092675,2104.8,2104.1,0.001]
[1770584106938,0.0472668,2104.2,2102.6,1.01729427]
[1770584107138,0.15337,2103.9,2103.0,4.75607278]
[1770584107363,0.15337,2103.9,2103.3,1.18857276]
[1770584107568,0.15337,2103.9,2103.2,1.18865852]
[1770584107774,0.15337,2103.9,2103.3,1.18860235]
[1770584107941,0.15337,2103.9,2103.1,1.18868828]
[1770584108138,0.15337,2103.9,2103.2,1.18865985]
[1770584108342,0.0472668,2103.7,2103.0,0.001]
[1770584108661,1.19810789,2103.9,2103.0,4.75609085]
[1770584108861,1.34169041,2103.9,2103.0,0.001]
[1770584109670,0.0472668,2103.7,2103.0,0.001]
[1770584110168,1.09200469,2103.7,2102.8,1.188891]
[1770584110380,1.51606528,2103.8,2102.7,1.19892136]
[1770584110667,0.36260972,2103.7,2102.7,1.19892136]
[1770584111439,1.55100363,2103.7,2102.7,1.19892136]
[1770584112046,1.55100363,2103.7,2102.8,1.01729427]
[1770584112047,0.36260972,2103.7,2102.8,1.01729427]
[1770584112362,0.36260972,2103.7,2102.9,1.01729427]
[1770584113163,0.36260972,2103.7,2103.0,1.18877793]
[1770584114268,2.64299891,2103.7,2102.9,1.18879264]
[1770584114459,0.0472668,2103.4,2102.9,1.1888316]
[1770584114659,1.12283789,2103.6,2102.9,1.18883416]
[1770584115067,0.0472668,2103.4,2102.8,4.50885559]
[1770584115246,2.31133182,2103.6,2102.8,4.50885559]
[1770584115445,0.0788,2103.5,2102.8,4.50885559]
[1770584115655,0.0472668,2103.4,2102.8,1.18888462]
[1770584115964,0.0472668,2103.3,2102.7,1.19888902]
[1770584116666,0.0472668,2102.8,2102.0,1.18930771]
[1770584116963,0.0472668,2102.6,2102.1,1.18925734]
[1770584117168,1.18255077,2102.6,2101.4,4.75871768]
[1770584117373,0.40903457,2102.6,2102.2,1.18921225]
[1770584117558,0.40903457,2102.6,2102.1,1.18924522]
[1770584117870,0.40903457,2102.6,2102.0,4.75728609]
[1770584117871,0.0472668,2102.5,2101.8,4.75777487]
[1770584118074,0.0472668,2102.5,2101.8,4.75763558]
[1770584118240,0.0472668,2102.5,2102.0,1.13934338]
[1770584118444,0.40903457,2102.6,2102.0,1.13934338]
[1770584118445,0.40903457,2102.6,2102.2,1.18922418]
[1770584119048,3.321,2103.2,2102.0,5.79515224]
[1770584119252,0.2804,2103.3,2102.1,1.03723092]
[1770584119457,0.2804,2103.3,2102.2,1.03723092]
[1770584119642,0.5,2103.0,2102.2,1.03723092]
[1770584119845,0.2804,2103.3,2102.4,1.03723092]
[1770584120068,0.002,2103.7,2102.4,1.03723092]
[1770584120253,0.3668646,2103.7,2102.4,1.03723092]
[1770584120569,1.55524791,2103.7,2102.4,1.03723092]
[1770584120773,0.3668646,2103.7,2102.4,1.03723092]
[1770584121076,0.3668646,2103.7,2102.5,2.22629156]
[1770584122871,0.3668646,2103.7,2102.6,1.03723092]
[1770584123050,1e-08,2103.7,2102.8,1.03723092]
[1770584123250,1e-08,2103.7,2102.9,3.322]
[1770584123442,1e-08,2103.7,2102.9,4.35923092]
[1770584124073,1e-08,2103.8,2102.9,4.35923092]
[1770584124274,1e-08,2103.8,2103.0,1.03723092]
[1770584125371,1e-08,2103.8,2103.1,1.18872141]
[1770584129157,1e-08,2103.8,2103.1,2.22595233]
[1770584130375,1e-08,2103.8,2103.1,1.18872141]
[1770584130784,0.002,2103.6,2103.1,1.18872141]
[1770584131963,0.002,2103.6,2103.0,4.75488564]
[1770584134488,0.002,2103.6,2103.0,5.79211656]
[1770584136787,0.00200001,2103.8,2103.0,5.79211656]
[1770584141003,0.00200001,2103.8,2103.1,1.03723092]
[1770584141197,1e-08,2104.0,2103.2,1.03723092]
[1770584141493,1e-08,2104.0,2103.4,1.03723092]
[1770584141793,1e-08,2104.0,2103.5,3.322]
[1770584142290,0.05981894,2104.3,2103.5,3.322]
[1770584142495,0.05981894,2104.3,2103.6,1.03723092]
[1770584143194,0.0492668,2104.8,2103.6,1.03723092]
[1770584143372,1.18455077,2104.8,2103.6,1.03723092]
[1770584143572,1.13728397,2104.8,2103.7,2.22561329]
[1770584143776,1.13728397,2104.8,2103.8,1.03723092]
[1770584143976,1.19707923,2104.8,2103.8,1.03723092]
[1770584144196,0.06179526,2104.8,2103.8,1.03723092]
[1770584144590,0.0472668,2104.7,2103.7,1.18838237]
[1770584144797,1.18255077,2104.7,2103.7,1.18838237]
[1770584145005,0.002,2103.8,2103.7,1.18838237]
[1770584145305,1.18255077,2104.7,2103.7,1.18838237]
[1770584145599,1.18455077,2104.7,2103.7,1.18838237]
[1770584145904,1.13728397,2104.7,2103.7,1.18838237]
[1770584147299,1.13728397,2104.7,2103.7,2.34848215]
[1770584147500,0.002,2104.7,2103.8,1.16009978]
[1770584147806,0.002,2104.7,2104.0,1.16009978]
[1770584148106,1.11040974,2105.0,2104.1,3.321]
[1770584148598,1.17020482,2105.0,2104.1,4.48109978]
[1770584148811,0.05979458,2104.9,2104.1,4.48109978]
[1770584150499,1.11040974,2105.0,2104.2,1.18809999]
[1770584151097,1.21747285,2104.9,2104.2,1.18809999]
[1770584152898,0.05979634,2104.8,2104.2,1.18809999]
[1770584155316,1.43206754,2105.1,2104.2,1.18809999]
[1770584156988,0.3216578,2105.1,2104.3,1.16009978]
[1770584157189,1e-08,2105.1,2104.5,2.3480304]
[1770584157809,0.002,2104.9,2104.5,2.3480304]
[1770584158620,0.002,2104.9,2104.5,1.18793062]
[1770584158913,0.002,2104.9,2104.6,1.16009978]
[1770584159102,0.00200001,2105.1,2104.7,3.321]
[1770584159294,0.00400001,2105.1,2104.8,1.1877613]
[1770584160497,0.00200001,2105.1,2104.8,1.1877613]
[1770584160811,0.00200001,2105.1,2104.8,2.34786108]
[1770584161218,0.002,2105.3,2104.8,2.34786108]
[1770584161990,1e-08,2105.4,2104.4,0.001]
[1770584161991,0.0472668,2105.1,2104.4,0.001]
[1770584162303,0.0472668,2104.7,2104.6,1.18786997]
[1770584162505,0.002,2105.0,2104.6,1.18786997]
[1770584164307,0.002,2104.9,2104.6,1.18786997]
[1770584164489,0.0492668,2105.2,2104.6,1.18786997]
[1770584164909,0.0492668,2105.2,2104.6,1.18609545]
[1770584165107,0.0492668,2105.2,2104.6,1.1842322]
[1770584165302,1.15967654,2105.2,2104.6,1.1842322]
[1770584165708,0.002,2105.2,2104.6,1.1842322]
[1770584166823,0.002,2105.2,2104.6,2.34433198]
[1770584167020,0.2811,2105.3,2104.7,1.16009978]
[1770584167225,0.002,2105.3,2104.7,1.16009978]
[1770584168616,0.002,2105.3,2104.8,1.1877613]
[1770584168820,1e-08,2105.4,2104.9,1.16009978]
[1770584170406,1e-08,2105.4,2104.8,1.1877613]
[1770584170407,0.00200001,2105.4,2105.0,3.32]
[1770584170606,0.00200001,2105.4,2105.1,1.18759203]
[1770584171828,0.002,2105.3,2105.1,1.18759203]
[1770584172228,0.002,2105.2,2105.1,1.18759203]
[1770584175838,1.16666934,2105.2,2104.6,0.001]
[1770584176039,0.002,2105.3,2104.6,0.001]
[1770584176040,1.21393614,2105.1,2104.6,0.001]
[1770584176332,1.21393614,2105.1,2104.7,3.11483037]
[1770584178418,2.40153344,2105.1,2104.7,3.11483037]
[1770584179933,0.001,2105.0,2104.7,3.11483037]
[1770584182439,0.9339592,2104.9,2104.4,0.001]
[1770584182620,0.0472668,2104.7,2104.1,1.18912891]
[1770584182940,0.0472668,2104.7,2103.4,1.18118588]
[1770584182941,0.93771161,2104.6,2103.4,1.18118588]
[1770584183119,0.93771161,2104.6,2103.4,5.93519754]
[1770584183120,0.98497841,2104.4,2103.4,5.93519754]
[1770584183319,0.98497841,2104.4,2103.5,1.18844907]
[1770584183521,0.93771161,2104.3,2103.5,1.18844907]
[1770584183720,0.0472668,2104.1,2103.5,1.18844907]
[1770584183940,0.98870828,2104.1,2103.4,3.32]
[1770584184148,0.001,2104.0,2103.4,3.32]
[1770584184521,1.18821292,2104.0,2103.4,3.32]
[1770584186725,0.001,2103.9,2103.4,3.32]
[1770584187928,0.31888585,2104.1,2103.5,1.18118588]
[1770584188141,1.18790663,2104.6,2103.5,1.18118588]
[1770584188732,1.23517343,2104.6,2103.7,1.18118588]
[1770584189334,1.18790663,2104.6,2103.7,1.18118588]
[1770584189633,0.31855613,2104.7,2103.7,1.18118588]
[1770584190749,0.31855613,2104.7,2103.9,1.18118588]
[1770584193855,0.31855613,2104.7,2104.1,1.18118588]
[1770584194145,0.31855613,2104.7,2104.2,3.321]
[1770584195228,0.31855613,2104.7,2104.2,4.50218588]
[1770584195951,0.31855613,2104.7,2104.3,1.18804352]
[1770584197534,0.31855613,2104.7,2104.3,2.3692294]
[1770584199725,0.31855613,2104.7,2104.4,1.18118588]
[1770584200165,0.002,2104.8,2104.5,1.18793062]
[1770584200728,0.002,2104.8,2104.6,1.18118588]
[1770584201134,1e-08,2105.1,2104.6,1.18118588]
[1770584202458,1e-08,2105.1,2104.7,2.36900362]
[1770584202660,1e-08,2105.1,2104.8,3.321]
[1770584203442,1e-08,2105.1,2104.8,4.50218588]
[1770584204431,1e-08,2105.1,2104.9,1.18770487]
[1770584204636,1e-08,2105.1,2105.0,1.18118588]
[1770584205185,2.19684947,2105.9,2105.0,1.18118588]
[1770584205359,0.002,2105.9,2105.0,1.18118588]
[1770584206246,0.0492668,2105.9,2105.0,1.18118588]
[1770584206745,0.002,2105.9,2105.2,1.12516864]
[1770584207555,0.002,2105.9,2105.2,1.12357113]
[1770584207773,0.002,2105.9,2105.2,1.12189374]
[1770584208451,0.0492668,2105.9,2105.1,1.18759203]
[1770584208774,0.0492668,2105.9,2105.1,2.31276067]
[1770584209348,0.0492668,2105.9,2105.2,1.12516864]
[1770584209665,1.07724715,2105.9,2105.0,1.18762029]
[1770584209850,1.07724715,2105.9,2105.0,1.18764718]
[1770584209851,1.07798667,2105.6,2105.0,1.18764718]
[1770584210053,1.07798667,2105.6,2104.9,1.18767781]
[1770584210270,1.07798667,2105.6,2104.8,4.50871855]
[1770584210448,1.07798667,2105.6,2105.0,1.18764515]
[1770584210880,2.21808629,2105.5,2104.8,4.5087588]
[1770584212060,1.23463322,2105.5,2104.8,4.5087588]
[1770584212256,0.0472668,2105.2,2104.8,3.321]
[1770584212466,1.03608377,2105.3,2104.8,3.321]
[1770584212990,2.22361476,2105.3,2104.8,3.321]
[1770584213476,0.0472668,2105.2,2104.8,3.321]
[1770584216682,1.18753099,2105.3,2104.8,3.321]
[1770584217995,1.23472753,2105.4,2104.8,3.321]
[1770584218197,1.18746073,2105.4,2104.8,3.321]
[1770584218402,1.18918443,2105.9,2104.9,1.12516864]
[1770584218622,1.05350896,2105.7,2104.9,2.3128384]
[1770584218894,1.09877576,2105.6,2104.8,4.50876068]
[1770584219477,0.002,2105.7,2105.0,1.12516864]
[1770584220571,0.002,2105.7,2105.1,2.31276067]
[1770584220973,0.002,2105.7,2105.2,1.12516864]
[1770584222178,0.002,2105.7,2105.1,1.18759203]
[1770584222870,0.002,2105.7,2105.1,2.31276067]
[1770584223498,0.002,2105.5,2105.1,2.31276067]
[1770584223873,0.002,2105.5,2105.0,0.001]
[1770584224087,0.0492668,2105.5,2105.0,0.001]
[1770584224477,1.0977678,2105.5,2105.0,0.001]
[1770584224794,1.18742281,2105.4,2105.0,0.001]
[1770584225372,1.18940431,2105.5,2105.0,0.001]
[1770584225572,1.23667111,2105.5,2105.0,0.001]
[1770584226896,0.0472668,2105.2,2104.8,3.321]
[1770584227596,1.04534292,2105.4,2104.8,3.321]
[1770584227797,0.0472668,2105.2,2104.8,3.321]
[1770584229377,1.23483309,2105.2,2104.8,3.321]
[1770584230577,4.74979579,2105.4,2104.8,3.321]
[1770584231477,0.0472668,2105.2,2104.8,3.321]
[1770584232094,4.74979579,2105.4,2104.8,3.321]
[1770584234288,4.74979579,2105.4,2104.8,4.44616864]
[1770584236206,4.74979579,2105.4,2104.8,3.321]
[1770584236405,4.74979579,2105.4,2104.8,5.72502765]
[1770584236406,1.18742281,2105.4,2104.8,5.72502765]
[1770584236602,1.18940947,2105.5,2105.0,0.001]
[1770584236804,0.002,2105.2,2105.0,1.21727347]
[1770584237804,0.002,2105.2,2105.0,0.001]
[1770584238604,0.002,2105.2,2105.0,1.21727347]
[1770584240381,0.002,2105.5,2105.2,1.21627347]
[1770584242008,0.002,2105.5,2105.2,1.15627347]
[1770584242508,0.002,2105.5,2105.0,0.001]
[1770584242712,0.002,2105.4,2105.0,0.001]
[1770584243419,0.002,2105.4,2105.0,2.40491973]
[1770584243620,0.002,2105.4,2105.0,1.18864626]
[1770584243790,0.002,2105.4,2105.1,1.21627347]
[1770584244599,0.002,2105.5,2105.1,1.21627347]
[1770584244800,0.002,2105.4,2105.1,1.21627347]
[1770584245399,0.002,2105.5,2105.1,1.21627347]
[1770584245701,0.002,2105.4,2105.1,1.21627347]
[1770584247321,0.002,2105.4,2105.2,1.21627347]
[1770584247893,0.002,2105.5,2105.2,1.21627347]
[1770584248120,0.004,2105.5,2105.2,1.21627347]
[1770584248326,0.002,2105.5,2105.2,1.21627347]
[1770584249292,0.002,2105.5,2105.3,1.21627347]
[1770584249515,0.002,2105.5,2105.3,1.21727347]
[1770584250190,0.002,2105.4,2105.3,0.001]
[1770584250389,1.08614802,2105.5,2105.0,0.001]
[1770584250700,0.001,2105.3,2105.0,0.001]
[1770584251996,1.18742281,2105.4,2105.0,0.001]
[1770584252190,1.18842281,2105.4,2105.0,0.001]
[1770584252419,0.0472668,2105.3,2105.0,0.001]
[1770584252608,0.0472668,2105.3,2104.8,3.322]
[1770584254524,1.18753562,2105.2,2104.8,3.322]
[1770584256215,1.1875184,2105.3,2104.8,3.322]
[1770584256619,1.18936642,2105.5,2104.8,3.322]
[1770584257921,1.23663322,2105.5,2104.8,4.53827347]
[1770584258404,1.18936642,2105.5,2104.8,4.53827347]
[1770584262029,1.18936642,2105.5,2105.0,0.001]
[1770584262814,0.002,2105.3,2105.0,0.001]
[1770584263917,1.14136642,2105.5,2105.0,0.001]
[1770584270612,1.11946965,2105.3,2105.0,0.001]
[1770584270815,1.07220285,2105.3,2104.8,3.322]
[1770584271125,0.0472668,2105.2,2104.8,3.322]
[1770584272226,1.18759203,2105.1,2104.8,3.322]
[1770584275436,0.002,2104.9,2104.8,3.322]
[1770584281834,1.18736642,2105.5,2104.9,1.22512507]
[1770584282462,9.2524597,2105.3,2104.8,3.322]
[1770584282654,1.11381911,2105.3,2104.8,3.322]
[1770584283362,0.5,2105.1,2104.8,3.322]
[1770584283563,0.25711994,2105.1,2105.0,1.22512507]
[1770584283949,1.18928518,2105.7,2105.0,1.22512507]
[1770584284261,0.25711994,2105.5,2105.0,1.22512507]
[1770584286663,0.002,2105.7,2105.0,1.22512507]
[1770584286866,0.25711994,2105.6,2105.0,2.41276255]
[1770584287656,0.25711994,2105.6,2105.0,2.41376255]
[1770584287857,0.25711994,2105.6,2105.1,1.22512507]
[1770584289471,1.44448235,2105.6,2105.1,1.22512507]
[1770584291367,1.49174915,2105.6,2105.0,0.001]
[1770584291958,1.49174915,2105.6,2105.0,1.22612507]
[1770584293552,0.25711994,2105.6,2105.1,1.22512507]
[1770584295457,0.002,2105.7,2105.1,1.22512507]
[1770584295653,0.25911994,2105.7,2105.1,1.22512507]
[1770584295860,0.25911994,2105.7,2105.2,1.18753562]
[1770584296047,0.25911994,2105.7,2105.3,1.18235007]
[1770584296243,0.25911994,2105.7,2105.5,1.18235007]
[1770584297353,0.002,2105.7,2105.4,3.32]
[1770584297559,0.25911994,2105.7,2105.4,3.32]
[1770584297770,0.25911994,2105.7,2105.4,4.50235007]
[1770584300168,0.002,2105.6,2105.4,4.50235007]
[1770584300769,0.25911994,2105.6,2105.4,4.50235007]
[1770584300958,0.25911994,2105.6,2105.5,1.18235007]
[1770584301168,0.002,2105.6,2105.5,1.18235007]
[1770584301478,0.33489575,2105.9,2105.6,1.18235007]
[1770584301686,0.25711994,2105.8,2105.6,1.18235007]
[1770584302959,0.33489575,2105.9,2105.7,1.18235007]
[1770584303158,0.49085135,2105.9,2105.7,1.18235007]
[1770584304576,0.23373141,2105.9,2105.7,1.18235007]
[1770584304775,0.23373141,2105.9,2105.7,2.36959779]
[1770584304987,0.23373141,2105.9,2105.8,1.18235007]
[1770584305163,0.002,2106.0,2105.8,1.18235007]
[1770584305359,0.002,2106.0,2105.9,3.319]
[1770584305572,0.002,2106.0,2105.9,2.814952]
[1770584307682,0.002,2106.0,2105.9,3.99730207]
[1770584309284,0.002,2106.2,2106.0,1.18235007]
[1770584309464,0.002,2106.2,2105.9,2.814952]
[1770584314101,0.002,2106.0,2105.9,2.814952]
[1770584314391,0.002,2106.0,2105.9,5.18444295]
[1770584314598,0.002,2106.2,2105.9,2.814952]
[1770584326286,0.002,2106.2,2106.1,0.001]
[1770584328704,0.002,2106.2,2105.8,0.001]
[1770584328705,1.05396951,2106.2,2105.8,0.001]
[1770584328905,0.0472668,2106.1,2105.8,0.001]
[1770584329082,1.1959677,2106.0,2105.3,3.318]
[1770584329279,1.1959677,2106.0,2105.3,5.61099325]
[1770584329479,1.1959677,2106.0,2105.4,2.29292086]
[1770584329806,1.1979677,2106.2,2105.4,2.29292086]
[1770584329977,0.0472668,2106.1,2105.4,2.29292086]
[1770584330179,1.2432345,2106.1,2105.4,1.10551496]
[1770584330676,1.18708452,2106.0,2105.4,1.10551496]
[1770584333805,1.18708452,2106.0,2105.4,2.29293611]
[1770584334109,2.38303371,2106.1,2105.5,1.10551496]
[1770584334409,1.18706601,2106.1,2105.5,1.10551496]
[1770584335593,1.18706601,2106.1,2105.5,1.1040768]
[1770584335797,1.18706601,2106.1,2105.5,1.10256673]
[1770584338791,1.18706601,2106.1,2105.6,0.001]
[1770584338986,0.002,2105.9,2105.6,1.10651496]
[1770584339621,0.002,2106.1,2105.7,1.10551496]
[1770584341104,0.002,2106.1,2105.9,1.10551496]
[1770584341305,0.002,2106.1,2105.6,1.18828489]
[1770584341510,0.002,2106.1,2105.7,1.10551496]
[1770584341689,0.004,2106.1,2105.7,1.10551496]
[1770584341891,0.002,2106.1,2105.7,1.10551496]
[1770584342112,0.004,2106.1,2105.6,0.001]
[1770584342292,0.004,2106.1,2105.6,1.10651496]
[1770584342809,0.004,2106.1,2105.6,2.29382481]
[1770584344022,0.002,2106.0,2105.6,1.10651496]
[1770584344522,0.002,2106.0,2105.6,0.001]
[1770584344722,0.002,2106.0,2105.6,1.10651496]
[1770584346598,0.002,2106.1,2105.6,1.10651496]
[1770584346797,0.002,2106.0,2105.6,1.10651496]
[1770584348523,0.002,2106.0,2105.6,2.29381904]
[1770584348720,0.002,2106.0,2105.6,1.10651496]
[1770584350995,0.002,2106.0,2105.6,2.29382158]
[1770584351222,0.002,2106.0,2105.8,0.001]
[1770584352124,0.002,2106.1,2105.8,1.10651496]
[1770584352296,0.004,2106.1,2105.8,1.10651496]
[1770584352714,0.004,2106.1,2106.0,1.10551496]
[1770584352715,0.002,2106.1,2106.0,1.10551496]
[1770584353023,0.002,2106.1,2105.9,3.318]
[1770584353524,0.002,2106.1,2105.9,4.42351496]
[1770584353714,0.002,2106.1,2106.0,1.10551496]
[1770584354723,0.002,2106.2,2106.1,1.10551496]
[1770584354901,0.002,2106.4,2106.1,1.10551496]
[1770584355103,0.002,2106.3,2106.1,1.10551496]
[1770584357224,0.002,2106.3,2106.1,2.29253255]
[1770584357429,0.002,2106.4,2106.1,2.29253255]
[1770584357598,0.002,2106.3,2106.1,2.29253255]
[1770584359424,0.002,2106.4,2106.1,2.29253255]
[1770584359728,0.004,2106.4,2106.1,2.29253255]
[1770584360711,0.004,2106.4,2106.1,1.10551496]
[1770584361028,0.004,2106.4,2106.1,2.29254228]
[1770584362204,0.004,2106.4,2106.1,1.10551496]
[1770584363030,0.004,2106.4,2106.1,2.29253927]
[1770584364325,0.002,2106.2,2106.1,2.29253927]
[1770584364567,0.002,2106.2,2105.9,3.318]
[1770584364833,0.004,2106.2,2105.9,3.318]
[1770584365634,0.002,2106.2,2105.9,3.318]
[1770584369639,0.004,2106.2,2105.9,4.50513343]
[1770584369936,0.002,2106.1,2105.6,1.18179737]
[1770584370114,0.002,2106.1,2105.7,3.318]
[1770584371238,0.002,2106.1,2105.7,4.49879737]
[1770584372039,0.002,2106.2,2105.7,4.49879737]
[1770584372238,0.002,2106.1,2105.7,5.68603922]
[1770584374742,0.002,2106.2,2105.8,1.18079737]
[1770584375053,0.004,2106.2,2105.8,1.18079737]
[1770584375428,0.002,2106.4,2106.0,1.18079737]
[1770584375638,0.002,2106.3,2106.0,1.18079737]
[1770584376642,0.002,2106.4,2106.0,1.18079737]
[1770584376835,0.002,2106.3,2106.0,1.18079737]
[1770584377242,0.002,2106.2,2106.1,1.18079737]
[1770584378333,0.002,2106.2,2106.1,4.49879737]
[1770584378850,0.002,2106.2,2106.1,5.68317139]
[1770584381752,0.002,2106.4,2106.1,5.68317139]
[1770584382052,0.002,2106.3,2106.1,5.68317139]
[1770584382824,0.002,2106.3,2106.1,3.318]
[1770584387337,0.002,2106.4,2106.1,3.318]
[1770584388956,0.002,2106.4,2106.3,0.001]
[1770584392359,1.17888079,2106.4,2106.3,0.001]
[1770584392652,1.17988079,2106.4,2106.1,3.318]
[1770584392849,0.001,2106.3,2106.1,3.318]
[1770584394556,0.002,2106.4,2106.1,3.318]
[1770584394756,0.001,2106.3,2106.1,3.318]
[1770584395529,0.002,2106.4,2106.1,3.318]
[1770584395763,0.001,2106.3,2106.1,3.318]
[1770584400363,0.001,2106.2,2106.1,3.318]
[1770584402044,0.002,2106.2,2106.1,3.318]
[1770584402358,1.17888079,2106.2,2106.1,3.20383566]
[1770584402566,0.002,2106.2,2106.1,3.20383566]
[1770584403267,1.17888079,2106.2,2106.1,3.20383566]
[1770584403465,1.17888079,2106.2,2106.1,2.02857351]